fUSD/lending_fUSD_20241023
["ID","MTS","AMOUNT","RATE_DAILY","PERIOD"]
[340677204,1729657836008,-159.37,0.00048337,120]
[340677205,1729657836017,-16564.9593171,0.00048348,10]
[340677206,1729657836026,-9973.98652988,0.00048348,10]
[340677207,1729657836035,-5800.0,0.00048349,14]
[340677208,1729657836044,-5800.0,0.00048358,14]
[340677209,1729657836053,-154.90160657,0.00048358,30]
[340677210,1729657836062,-9973.98652988,0.0004836,10]
[340677211,1729657836071,-159.37,0.00048363,120]
[340677212,1729657836081,-5800.0,0.00048366,14]
[340677213,1729657836090,-16564.9593171,0.00048371,10]
[340677214,1729657836099,-9664.61697094,0.00048373,10]
[340677215,1729657836117,-378.28,0.0002,2]
[340677216,1729657836127,-309.36955894,0.00048373,10]
[340677217,1729657836137,-5800.0,0.00048375,14]
[340677218,1729657836147,-152.0,0.00048377,5]
[340677219,1729657836157,-9973.98652988,0.00048382,10]
[340677220,1729657836166,-5800.0,0.00048383,14]
[340677221,1729657836175,-16564.9593171,0.0004839,10]
[340677222,1729657836184,-159.37,0.0004839,120]
[340677223,1729657836193,-5785.03281123,0.00048392,14]
[340677224,1729657836205,-14.96718877,0.00048392,14]
[340677225,1729657836214,-1476.83056464,0.00048392,14]
[340677228,1729657838834,-992.07870645,0.0001859,2]
[340677244,1729657840355,-253.92129355,0.0001859,2]
[340677245,1729657840365,-378.28,0.0002,2]
[340677246,1729657840375,-378.28,0.0002,2]
[340677247,1729657840387,-378.28,0.0002,2]
[340677248,1729657840400,-378.28,0.0002,2]
[340677249,1729657840410,-378.28,0.0002,2]
[340677250,1729657840420,-378.28,0.00020854,2]
[340677251,1729657840431,-378.28,0.00020964,2]
[340677252,1729657840441,-102.15370646,0.00020964,2]
[340677254,1729657840681,-276.12629354,0.00020964,2]
[340677255,1729657840692,-150.0,0.0002159,2]
[340677257,1729657840701,-74.03179436,0.0002159,2]
[340677277,1729657843496,-3002.80636762,0.0001859,2]
[340677278,1729657843553,-2894.30511443,0.0001859,2]
[340677287,1729657846374,-658.07952203,0.0001859,2]
[340677288,1729657846485,-2633.52661891,0.0001859,2]
[340677292,1729657894625,250.0,0.0001,2]
[340677298,1729658008045,-150.0,0.00011008,2]
[340677299,1729658008070,-300.0,0.00012,2]
[340677300,1729658008094,-190.908,0.0001331,2]
[340677301,1729658008118,-190.908,0.0001331,2]
[340677302,1729658008142,-190.908,0.0001331,2]
[340677303,1729658008166,-688.5,0.0001331,2]
[340677304,1729658008191,-350.0,0.00014,2]
[340677305,1729658013688,-4442.84537701,0.0001859,2]
[340677306,1729658013712,-1158.106,0.0001859,2]
[340677307,1729658016919,-1794.531,0.0002149,2]
[340677308,1729658016943,-1100.0,0.00021589,2]
[340677309,1729658016967,-98.15220564,0.0002159,2]
[340677310,1729658016990,-13545.0,0.0002159,2]
[340677311,1729658017013,-1151.0,0.0002159,2]
[340677312,1729658017036,-378.28,0.00021755,2]
[340677313,1729658017059,-1105.96,0.00021755,2]
[340677314,1729658017083,-474.0,0.00022496,2]
[340677315,1729658017107,-378.28,0.00023964,2]
[340677316,1729658017130,-378.28,0.0002449,2]
[340677317,1729658017153,-378.28,0.0002479,2]
[340677318,1729658017176,-378.28,0.0002479,2]
[340677319,1729658017199,-378.28,0.00024989,2]
[340677320,1729658024240,169.0,5.15e-05,2]
[340677321,1729658084562,160.0,5.15e-05,2]
[340677322,1729658101342,300.0,0.00019725,2]
[340677323,1729658102704,420.0,0.00021484,2]
[340677324,1729658102841,587.0,0.00023401,2]
[340677325,1729658144149,154.0,5.15e-05,2]
[340677326,1729658161284,300.0,0.00019725,2]
[340677327,1729658162070,420.0,0.00021484,2]
[340677328,1729658162801,587.0,0.00023401,2]
[340677329,1729658204918,151.0,5.15e-05,2]
[340677330,1729658264658,187.0,5.15e-05,2]
[340677331,1729658325342,176.0,5.15e-05,2]
[340677332,1729658374815,423.94,0.0001726,2]
[340677334,1729658439112,195.45,0.00015342,2]
[340677335,1729658439319,195.45,0.00021745,2]
[340677336,1729658461356,300.0,0.00019725,2]
[340677337,1729658582020,300.0,0.00019725,2]
[340677338,1729658583542,1267.0,0.00015,2]
[340677339,1729658584161,1140.0,0.00015,2]
[340677340,1729658641715,300.0,0.00019725,2]
[340677341,1729658711193,-195.45,0.00028147,2]
[340677346,1729658976435,195.45,0.00015342,2]
[340677363,1729659031560,-152.52,0.000335,31]
[340677365,1729659031570,-152.52,0.000335,31]
[340677366,1729659031579,-152.52,0.000335,31]
[340677367,1729659031588,-86.5398858,0.000335,31]
[340677368,1729659031600,-65.9801142,0.000335,31]
[340677369,1729659031609,-150.0,0.00034548,10]
[340677370,1729659031618,-195.45,0.00034549,2]
[340677371,1729659031627,-253.84127569,0.00035098,20]
[340677372,1729659031638,-4404.04872431,0.00035098,20]
[340677373,1729659031647,-1093.17,0.00037361,15]
[340677374,1729659031657,-179.99,0.00037361,23]
[340677375,1729659031666,-376.58092482,0.00037927,120]
[340677376,1729659031674,-3753.80320299,0.00038476,2]
[340677377,1729659031685,-630.71679701,0.00038476,2]
[340677378,1729659031694,-376.58092482,0.00038493,120]
[340677379,1729659031704,-167.55,0.00038577,2]
[340677380,1729659031712,-635.8,0.00038577,2]
[340677381,1729659031721,-305.96,0.00038593,2]
[340677382,1729659031730,-1099.05,0.00038593,2]
[340677383,1729659031740,-400.10296912,0.00038593,2]
[340677384,1729659031751,-99.88703088,0.00038593,2]
[340677385,1729659031760,-152.52,0.000397,31]
[340677386,1729659031769,-152.52,0.000397,31]
[340677387,1729659031778,-152.52,0.000397,31]
[340677388,1729659031787,-152.52,0.000397,31]
[340677389,1729659031796,-152.52,0.000397,31]
[340677390,1729659031805,-152.52,0.000397,31]
[340677391,1729659031814,-152.52,0.000397,31]
[340677392,1729659031824,-152.52,0.000397,31]
[340677393,1729659031833,-1000.0,0.00040064,2]
[340677394,1729659031842,-167.55,0.00040699,2]
[340677395,1729659031851,-213.988,0.00040699,58]
[340677396,1729659031860,-195.45,0.00040952,2]
[340677397,1729659031869,-212.4,0.00041277,2]
[340677398,1729659031879,-167.55,0.00042821,2]
[340677399,1729659031888,-1432.0,0.00042852,2]
[340677400,1729659031897,-201.31,0.00042852,2]
[340677401,1729659031906,-2349.85,0.00042905,2]
[340677402,1729659031915,-3187.44,0.00043039,2]
[340677406,1729659031924,-517.18,0.00043175,7]
[340677407,1729659032134,-5600.08976241,0.00043189,2]
[340677408,1729659032150,-817.82023759,0.00043189,2]
[340677409,1729659032160,-250.76,0.00043305,2]
[340677410,1729659032170,-250.0,0.00043356,2]
[340677411,1729659032179,-187.19149812,0.00043441,29]
[340677412,1729659032189,-212.4,0.00043541,2]
[340677413,1729659032199,-460.24222414,0.00043597,2]
[340677414,1729659032222,-1060.27503497,0.00043597,2]
[340677415,1729659037490,-1000.0,0.00043189,2]
[340677417,1729659037500,-4283.79274089,0.00043597,2]
[340677418,1729659037509,-187.45,0.000437,7]
[340677420,1729659037519,-200.0,0.00043881,2]
[340677421,1729659037528,-86.41725911,0.00043895,2]
[340677422,1729659037551,-436.826,0.00043895,2]
[340677423,1729659037563,-46.44674089,0.00043895,2]
[340677424,1729659037572,-1021.04105148,0.00043912,120]
[340677425,1729659037584,-585.79655138,0.00043912,120]
[340677426,1729659037716,-450.0,0.00043356,2]
[340677427,1729659037727,-1144.16239714,0.00043912,120]
[340677428,1729659037739,-200.0,0.00043977,2]
[340677429,1729659037749,-2363.34,0.00043989,60]
[340677430,1729659037759,-150.0,0.00044,57]
[340677431,1729659037769,-500.0,0.00044045,2]
[340677432,1729659037779,-181.35,0.00044125,120]
[340677433,1729659037788,-158.89,0.00044161,120]
[340677434,1729659037799,-250.0,0.00044188,120]
[340677435,1729659037810,-260.89,0.00044209,120]
[340677436,1729659037821,-312.77,0.00044432,120]
[340677437,1729659037831,-152.0,0.00044471,3]
[340677438,1729659037842,-250.0,0.00044673,120]
[340677439,1729659037853,-150.0,0.00044716,2]
[340677440,1729659037864,-155.73,0.00044752,2]
[340677441,1729659037874,-200.0,0.00044762,2]
[340677442,1729659037885,-1016.9771,0.00044767,20]
[340677443,1729659037894,-247.19,0.00044776,2]
[340677444,1729659037903,-500.0,0.00044776,2]
[340677445,1729659037912,-463.36,0.00044811,2]
[340677446,1729659037921,-463.36,0.00044823,2]
[340677447,1729659037931,-463.36,0.00044834,2]
[340677448,1729659037941,-463.36,0.00044846,2]
[340677449,1729659037951,-463.36,0.00044858,2]
[340677450,1729659037960,-463.36,0.0004487,2]
[340677451,1729659037971,-463.36,0.00044881,2]
[340677452,1729659037980,-463.36,0.00044893,2]
[340677453,1729659037990,-463.36,0.00044905,2]
[340677454,1729659037999,-222.87369209,0.00044917,2]
[340677455,1729659038012,-240.48630791,0.00044917,2]
[340677456,1729659038021,-463.36,0.00044929,2]
[340677457,1729659038030,-463.36,0.0004494,2]
[340677458,1729659038039,-167.55,0.00044944,2]
[340677459,1729659038049,-198.4620198,0.00044952,2]
[340677479,1729659039533,-264.8979802,0.00044952,2]
[340677480,1729659039545,-463.36,0.00044964,2]
[340677481,1729659039554,-463.36,0.00044976,2]
[340677482,1729659039563,-463.36,0.00044987,2]
[340677483,1729659039573,-463.36,0.00044999,2]
[340677484,1729659039583,-274.75364671,0.00045,12]
[340677485,1729659039594,-3713.49469196,0.00045,12]
[340677486,1729659039604,-9167.05645562,0.00045,120]
[340677487,1729659039615,-790.21110041,0.00045,120]
[340677488,1729659039628,-17030.51846366,0.00045,120]
[340677489,1729659039638,-463.36,0.00045011,2]
[340677490,1729659039647,-463.36,0.00045023,2]
[340677491,1729659039656,-463.36,0.00045035,2]
[340677492,1729659039665,-1000.0,0.00045072,2]
[340677493,1729659039675,-530.63,0.00045143,120]
[340677494,1729659039685,-165.7,0.00045427,2]
[340677495,1729659039695,-212.4,0.00045805,2]
[340677496,1729659039704,-272.69,0.0004589,10]
[340677497,1729659039714,-227.24,0.0004589,10]
[340677498,1729659039724,-152.52,0.000459,39]
[340677499,1729659039733,-152.52,0.000459,39]
[340677500,1729659039743,-152.52,0.000459,39]
[340677501,1729659039752,-152.52,0.000459,39]
[340677502,1729659039761,-152.52,0.000459,39]
[340677503,1729659039770,-152.52,0.000459,39]
[340677504,1729659039780,-152.52,0.000459,39]
[340677505,1729659039789,-152.52,0.000459,39]
[340677506,1729659039798,-5000.0,0.00047,120]
[340677507,1729659039807,-1894.73,0.00047057,2]
[340677508,1729659039817,-180.0,0.00047172,120]
[340677509,1729659039827,-195.45,0.00047354,2]
[340677510,1729659039836,-216.54116277,0.00047837,2]
[340677511,1729659039845,-1000.0,0.00047945,120]
[340677512,1729659039855,-175.0,0.00048,90]
[340677513,1729659039865,-5000.0,0.00048,120]
[340677514,1729659039874,-212.4,0.00048069,2]
[340677515,1729659039884,-4323.16943536,0.00048392,14]
[340677516,1729659039893,-500.0,0.00048392,30]
[340677517,1729659039902,-500.0,0.00048392,30]
[340677518,1729659039912,-533.26546539,0.00048392,30]
[340677519,1729659039921,-150.0,0.00048392,14]
[340677520,1729659039931,-230.22659286,0.00048392,14]
[340677521,1729659039940,-2026.0156806,0.00048394,2]
[340677522,1729659040121,-4545.9014133,0.00048394,2]
[340677523,1729659040130,-5800.0,0.000484,14]
[340677524,1729659040139,-5800.0,0.000484,14]
[340677525,1729659040149,-2791.0705372,0.00048417,2]
[340677526,1729659040158,-611.4,0.0004845,30]
[340677527,1729659040168,-23693.3171358,0.0004846,2]
[340677528,1729659040177,-1000.0,0.00048493,120]
[340677529,1729659040187,-10000.0,0.000486,7]
[340677530,1729659040197,-387.89801396,0.00048887,14]
[340677531,1729659040206,-2621.18397886,0.000489,15]
[340677532,1729659040216,-412.0,0.00048986,90]
[340677533,1729659040226,-214.12782659,0.00048988,120]
[340677534,1729659040235,-2008.27,0.00049,90]
[340677535,1729659040244,-5000.0,0.00049,120]
[340677536,1729659040254,-3057.7836,0.00049,120]
[340677537,1729659040263,-231.91150294,0.00049,120]
[340677538,1729659040272,-800.0,0.00049,60]
[340677539,1729659040281,-996.79933564,0.00049041,120]
[340677540,1729659040291,-300.0,0.00049315,30]
[340677541,1729659040300,-300.0,0.00049315,30]
[340677542,1729659040310,-300.0,0.00049315,30]
[340677543,1729659040319,-300.0,0.00049315,30]
[340677544,1729659040328,-300.0,0.00049315,30]
[340677545,1729659040337,-300.0,0.00049315,30]
[340677546,1729659040346,-300.0,0.00049315,30]
[340677547,1729659040355,-300.0,0.00049315,30]
[340677548,1729659040365,-300.0,0.00049315,30]
[340677549,1729659040374,-250.0,0.00049315,30]
[340677550,1729659040383,-260.0,0.00049315,30]
[340677551,1729659040392,-929.7,0.00049315,120]
[340677552,1729659040401,-4072.22219863,0.00049315,14]
[340677553,1729659040410,-319.52321496,0.00049315,120]
[340677554,1729659040419,-500.0,0.00049315,120]
[340677555,1729659040429,-762.39,0.00049315,120]
[340677556,1729659040438,-1082.87,0.00049315,120]
[340677557,1729659040447,-500.0,0.00049315,60]
[340677558,1729659040456,-500.0,0.00049315,7]
[340677559,1729659040466,-500.0,0.00049315,120]
[340677560,1729659040476,-439.4936472,0.00049315,120]
[340677561,1729659040486,-600.0,0.00049315,120]
[340677562,1729659040495,-514.23122832,0.00049315,120]
[340677563,1729659040505,-990.04,0.00049315,120]
[340677564,1729659040514,-300.0,0.00049315,120]
[340677565,1729659040524,-500.0,0.00049315,120]
[340677566,1729659040533,-150.0,0.00049315,120]
[340677567,1729659040543,-1000.0,0.00049315,120]
[340677568,1729659040552,-150.0,0.00049315,120]
[340677569,1729659040561,-500.0,0.00049315,120]
[340677570,1729659040571,-1000.0,0.00049315,120]
[340677571,1729659040582,-500.0,0.00049315,120]
[340677572,1729659040593,-1894.73,0.0004941,2]
[340677573,1729659040603,-500.0,0.00049489,120]
[340677574,1729659040611,-836.25,0.00049489,120]
[340677575,1729659040621,-40312.48377343,0.0004949,120]
[340677576,1729659040631,-500.0,0.00049689,18]
[340677577,1729659040639,-500.0,0.00049689,18]
[340677578,1729659040649,-500.0,0.00049689,18]
[340677579,1729659040658,-500.0,0.00049689,18]
[340677580,1729659040667,-500.0,0.00049689,18]
[340677581,1729659040677,-500.0,0.00049689,18]
[340677582,1729659040686,-500.0,0.00049689,18]
[340677583,1729659040695,-500.0,0.00049689,18]
[340677584,1729659040704,-500.0,0.00049689,34]
[340677585,1729659040713,-957.12652,0.00049857,120]
[340677586,1729659040722,-249.78307277,0.00049861,120]
[340677587,1729659040731,-1551.03,0.00049861,120]
[340677588,1729659040741,-500.0,0.00049861,120]
[340677589,1729659040750,-529.34,0.00049861,120]
[340677590,1729659040760,-500.0,0.00049862,120]
[340677591,1729659040770,-559.27002197,0.00049862,120]
[340677592,1729659040779,-215.44,0.00049862,120]
[340677593,1729659040789,-500.0,0.00049862,120]
[340677594,1729659040798,-1000.0,0.00049862,120]
[340677595,1729659040807,-586.85,0.00049862,90]
[340677596,1729659040816,-1000.0,0.00049862,120]
[340677597,1729659040825,-1000.0,0.00049862,120]
[340677598,1729659040834,-2000.0,0.00049862,120]
[340677599,1729659040843,-929.7,0.00049863,120]
[340677600,1729659040852,-500.0,0.00049863,120]
[340677601,1729659040861,-762.39,0.00049863,120]
[340677602,1729659040870,-1082.87,0.00049863,120]
[340677603,1729659040879,-500.0,0.00049863,60]
[340677604,1729659040889,-500.0,0.00049863,7]
[340677605,1729659040898,-600.0,0.00049863,120]
[340677606,1729659040907,-990.04,0.00049863,120]
[340677607,1729659040916,-300.0,0.00049863,120]
[340677608,1729659040926,-500.0,0.00049863,120]
[340677609,1729659040935,-150.0,0.00049863,120]
[340677610,1729659040944,-34.97066139,0.00049863,120]
[340677611,1729659040960,-1000.0,0.00043597,2]
[340677612,1729659040970,-965.02933861,0.00049863,120]
[340677613,1729659040979,-150.0,0.00049863,120]
[340677614,1729659040988,-500.0,0.00049863,120]
[340677615,1729659040999,-1000.0,0.00049863,120]
[340677616,1729659041009,-500.0,0.00049863,120]
[340677617,1729659041018,-7520.86520102,0.0004988,120]
[340677618,1729659041028,-8000.0,0.000499,30]
[340677619,1729659041038,-242.451061,0.000499,40]
[340677620,1729659041048,-710.27263009,0.000499,22]
[340677621,1729659041058,-1255.27500602,0.000499,2]
[340677622,1729659041068,-500.0,0.0004998,120]
[340677623,1729659041080,-516.63535841,0.0004998,120]
[340677624,1729659041092,-412.0,0.00049986,90]
[340677625,1729659041101,-15764.9862286,0.0004999,10]
[340677626,1729659041110,-47294.9586857,0.0004999,10]
[340677627,1729659041120,-607.0,0.00049998,7]
[340677628,1729659041132,-500.0,0.00049999,120]
[340677629,1729659041141,-500.0,0.00049999,120]
[340677630,1729659041151,-500.0,0.00049999,120]
[340677631,1729659041160,-500.0,0.00049999,120]
[340677632,1729659041171,-374.08690691,0.00049999,120]
[340677633,1729659041180,-4682.30654207,0.0005,60]
[340677634,1729659041191,-4477.87042098,0.0005,60]
[340677635,1729659041207,-450.0,0.00043597,2]
[340677636,1729659041216,-1886.89922027,0.0005,60]
[340677637,1729659041227,-2006.89267566,0.0005,60]
[340677638,1729659041238,-262.15527206,0.0005,60]
[340677642,1729659042561,-1791.82706729,0.00046,120]
[340677643,1729659042828,-337.65830248,0.00043977,2]
[340677646,1729659635807,158.01,0.00015342,2]
[340677647,1729659794282,157.88923212,0.0001726,2]
[340677648,1729659889840,361.0,0.00015,2]
[340677649,1729659890345,343.0,0.00015,2]
[340677650,1729659947139,-301.26473988,0.000334,120]
[340677651,1729659947160,-111.5029594,0.000335,2]
[340677652,1729659956103,-291.73626352,0.000335,2]
[340677653,1729659956127,-152.6,0.000335,31]
[340677654,1729659956147,-152.6,0.000335,31]
[340677655,1729659956171,-573.89471523,0.00034795,2]
[340677656,1729660205664,156.78,0.00015342,2]
[340677658,1729660231690,-156.78,0.00027507,2]
[340677659,1729660231700,-152.62,0.000346,31]
[340677660,1729660231709,-156.78,0.00039671,2]
[340677661,1729660231719,-152.62,0.000406,31]
[340677662,1729660231728,-152.62,0.000406,31]
[340677663,1729660231739,-271.13826587,0.000438,120]
[340677664,1729660231750,-281.43,0.000438,2]
[340677665,1729660231759,-169.92,0.00044428,2]
[340677666,1729660231770,-271.13826587,0.000445,120]
[340677667,1729660231779,-5000.0,0.00045,120]
[340677668,1729660231789,-543.19038711,0.00045,120]
[340677669,1729660231799,-271.13826587,0.000452,120]
[340677670,1729660231808,-1136.83,0.00045672,2]
[340677671,1729660231817,-716.0,0.00045755,2]
[340677672,1729660231826,-1000.0,0.00045786,2]
[340677673,1729660231836,-271.13826587,0.000459,120]
[340677674,1729660231847,-3208.17293271,0.00046,120]
[340677675,1729660231856,-1650.69,0.00046,2]
[340677676,1729660231865,-999.99,0.00046,2]
[340677677,1729660231875,-250.0,0.00046011,2]
[340677678,1729660231884,-250.0,0.0004605,120]
[340677679,1729660231892,-150.0,0.00046059,2]
[340677680,1729660231902,-260.64,0.00046078,120]
[340677681,1729660231911,-152.62,0.000465,42]
[340677682,1729660231920,-152.62,0.000465,42]
[340677683,1729660231929,-200.0,0.00046516,2]
[340677684,1729660231939,-169.92,0.00046692,2]
[340677685,1729660231948,-165.7,0.00046711,2]
[340677686,1729660231957,-424.5,0.00046761,120]
[340677687,1729660231966,-250.0,0.00047584,120]
[340677688,1729660231975,-200.0,0.00047591,2]
[340677689,1729660231984,-307.92,0.00047598,2]
[340677690,1729660231993,-1136.83,0.00047955,2]
[340677691,1729660232002,-217.4,0.00048116,120]
[340677692,1729660232011,-171.19,0.00048742,84]
[340677693,1729660232020,-187.19149811,0.0004879,36]
[340677694,1729660232029,-1732.6882485,0.000488,2]
[340677695,1729660232041,-211.8588515,0.000488,2]
[340677696,1729660232050,-828.22799109,0.000488,15]
[340677697,1729660232061,-800.0,0.000488,15]
[340677698,1729660232071,-439.2844706,0.000488,15]
[340677731,1729660237746,-818.775,0.00046045,2]
[340677732,1729660237864,-316.62500066,0.00046045,2]
[340677733,1729660237976,-987.45743925,0.00046045,2]
[340677734,1729660237999,-9949.72714559,0.00046045,2]
[340677735,1729660238136,-24216.36897778,0.00046045,2]
[340677739,1729660239871,-200.85683739,0.000449,2]
[340677740,1729660239887,-74.67759651,0.00046045,2]
[340677747,1729660242713,-925.32240349,0.00046045,2]
[340677749,1729660242729,-5085.86399643,0.00046045,2]
[340677752,1729660242931,-6087.17060983,0.00046045,2]
[340677754,1729660246124,-908.68960108,0.00046045,2]
[340677755,1729660262694,200.0,0.00023,2]
[340677758,1729660512493,1085.0,0.00022458,2]
[340677759,1729660682775,225.0,0.00019725,2]
[340677760,1729660691487,1318.0,0.00015,2]
[340677761,1729660717578,159.95,0.00015342,2]
[340677762,1729660816295,783.171,0.00022458,2]
[340677763,1729661108068,15585.58656224,0.00011,2]
[340677764,1729661108097,44399.04862299,0.00011,2]
[340677765,1729661108128,47938.776,0.00011,2]
[340677766,1729661108163,1450091.39572423,0.00011,2]
[340677767,1729661134702,150.04153141,0.0001,2]
[340677768,1729661167558,180.28,0.00011394,2]
[340677769,1729661199441,150.0,0.00012,3]
[340677770,1729661281896,49819.72,0.00011,2]
[340677771,1729661281920,50000.0,0.00011,2]
[340677772,1729661281943,1286120.15192044,0.00011,2]
[340677786,1729661431862,-171.191,0.00032895,34]
[340677787,1729661431872,-162.68295952,0.0003364,120]
[340677789,1729661431881,-162.68295952,0.00034485,120]
[340677791,1729661431891,-152.66,0.000347,31]
[340677792,1729661431900,-34.42308096,0.0003533,120]
[340677793,1729661431936,-128.25987856,0.0003533,120]
[340677794,1729661431945,-334.79012144,0.0003583,2]
[340677795,1729661431958,-5012.70987856,0.0003583,2]
[340677796,1729661431967,-284.36,0.00036022,2]
[340677797,1729661431976,-162.68295952,0.00036175,120]
[340677798,1729661431986,-162.68295952,0.0003702,120]
[340677799,1729661431996,-162.68295952,0.00037865,120]
[340677800,1729661432005,-162.68295952,0.0003871,120]
[340677801,1729661432015,-162.68295952,0.00039555,120]
[340677802,1729661432024,-159.95,0.00039671,2]
[340677803,1729661432033,-220.88696329,0.00040118,120]
[340677804,1729661432043,-77.9734528,0.000404,120]
[340677805,1729661432056,-84.70950672,0.000404,120]
[340677806,1729661432066,-150.0,0.00040499,4]
[340677807,1729661432076,-500.0,0.000405,2]
[340677808,1729661432086,-500.0,0.000405,2]
[340677809,1729661432096,-500.0,0.000405,2]
[340677810,1729661432105,-500.0,0.000405,2]
[340677811,1729661432115,-500.0,0.000405,2]
[340677812,1729661432124,-500.0,0.000405,2]
[340677813,1729661432133,-500.0,0.000405,2]
[340677814,1729661432142,-15.75450197,0.000405,2]
[340677815,1729661432157,-484.24549803,0.000405,2]
[340677817,1729661432166,-500.0,0.000405,2]
[340677819,1729661432175,-500.0,0.000405,2]
[340677821,1729661432185,-500.0,0.000405,2]
[340677823,1729661432195,-152.66,0.000406,31]
[340677825,1729661432204,-152.66,0.000406,31]
[340677827,1729661432213,-215.7,0.00041541,2]
[340677829,1729661432222,-1036.0,0.00042,30]
[340677831,1729661432232,-3035.63850166,0.00042,5]
[340677833,1729661432243,-7141.25819299,0.00042,5]
[340677835,1729661432254,-671.11,0.00042,5]
[340677839,1729661432267,-450.99330535,0.00042,5]
[340677841,1729661432276,-163.73242953,0.00043071,2]
[340677843,1729661432287,-599.75271508,0.00043071,2]
[340677845,1729661432298,-2636.2,0.00043071,2]
[340677847,1729661432309,-4996.966294,0.00043071,2]
[340677850,1729661432325,-3453.40283082,0.00043071,2]
[340677864,1729661437860,-357.95902549,0.00025458,2]
[340677865,1729661437920,-8024.6535445,0.00025458,2]
[340677866,1729661437980,-582.0257873,0.00025458,2]
[340677867,1729661438039,-7396.519,0.00025458,2]
[340677868,1729661438051,-14806.95190231,0.00025458,2]
[340677869,1729661438061,-1000.0,0.00043071,2]
[340677870,1729661438071,-5503.84573057,0.00043071,2]
[340677871,1729661438081,-217.2,0.00043348,120]
[340677872,1729661438091,-800.0,0.00043389,2]
[340677873,1729661438101,-200.0,0.00043733,2]
[340677874,1729661438111,-215.7,0.00043805,2]
[340677875,1729661438120,-1013.0,0.00044,30]
[340677876,1729661438131,-492.81,0.00044276,2]
[340677877,1729661438140,-796.04034506,0.0004476,3]
[340677879,1729661439865,-616.775001,0.0004476,3]
[340677880,1729661439876,-17.18465394,0.0004476,3]
[340677881,1729661439886,-200.0,0.00044855,2]
[340677882,1729661439895,-153.34242333,0.00044988,2]
[340677883,1729661439981,-563.24757667,0.00044988,2]
[340677884,1729661439990,-153.7,0.00045089,2]
[340677885,1729661440000,-250.0,0.00045182,120]
[340677886,1729661440009,-250.0,0.00045208,2]
[340677887,1729661440020,-189.62,0.00045211,120]
[340677888,1729661440030,-250.0,0.00045433,120]
[340677889,1729661440040,-8577.55252732,0.00045805,3]
[340677890,1729661440051,-1383.66966781,0.00045805,3]
[340677891,1729661440063,-801.0,0.00045805,3]
[340677901,1729661442983,-1000.0,0.00043805,2]
[340677902,1729661442993,-2367.77780487,0.00045805,3]
[340677903,1729661443003,-3628.0,0.00045825,3]
[340677904,1729661443013,-1408.16927505,0.00046068,2]
[340677905,1729661443025,-957.04072495,0.00046068,2]
[340677906,1729661443035,-215.7,0.00046069,2]
[340677907,1729661443045,-254.69,0.00046172,120]
[340677908,1729661443054,-152.66,0.000465,42]
[340677909,1729661443064,-152.66,0.000465,42]
[340677910,1729661443073,-200.0,0.00046516,2]
[340677911,1729661443083,-189.37,0.00047227,10]
[340677912,1729661443092,-157.8,0.00047227,10]
[340677913,1729661443102,-716.59,0.00047237,2]